[Event "Azerbaijan-ch-Women-2025"]
[Site "Baku"]
[Date "2025.02.05"]
[Round "1.2"]
[White "Ibrahimova, Sabina"]
[Black "Abdinova, Narmin"]
[Result "1-0"]
[Annotator "RC"]
[ECO "A19"]
[WhiteElo "2177"]
[BlackElo "2186"]
[PlyCount "143"]
[EventDate "2025.01.08"]
[EventType "k.o."]
[EventCountry "AZE"]
[SourceTitle "playchess.com"]
[Source "ChessBase"]
[SourceQuality "1"]
[TimeControl "40/5400+30:1800+30"]

1. c4 {[%emt 0:00:49]} Nf6 {[%emt 0:00:18]} 2. Nc3 {[%emt 0:00:20]} e6 {[%emt 0:00:08]} 3. e4 {[%emt 0:00:17]} c5 {[%emt 0:00:32]} 4. e5 {[%emt 0:01:21]} Ng8 {[%emt 0:00:04]} 5. d4 {[%emt 0:00:12]} cxd4 {[%emt 0:00:05]} 6. Qxd4 {[%emt 0:00:03]} Nc6 {[%emt 0:00:05]} 7. Qf4 {[%emt 0:07:59]} d6 {[%emt 0:00:07]} 8. Nf3 {[%emt 0:01:35]} Nh6 {[%emt 0:00:15]} 9. Be2 {[%emt 0:02:45]} dxe5 {[%emt 0:01:03]} 10. Nxe5 {[%emt 0:00:16]} Bd6 {[%emt 0:01:17]} 11. Nxc6 {[%emt 0:00:53]} Bxf4 {[%emt 0:00:14]} 12. Nxd8 {[%emt 0:00:14]} Bxc1 {[%emt 0:00:10]} 13. Rxc1 {[%emt 0:00:46]} Kxd8 {[%emt 0:00:02]} 14. O-O {[%emt 0:04:58]} Ke7 {[%emt 0:07:59]} 15. b4 {[%emt 0:10:11]} b6 {[%emt 0:10:38]} 16. Bf3 {[%emt 0:12:34]} Rb8 {[%emt 0:00:10]} 17. c5 {[%emt 0:07:56]} bxc5 {[%emt 0:00:54]} 18. bxc5 {[%emt 0:00:19]} Ba6 {[%emt 0:04:14]} 19. Rfe1 {[%emt 0:00:47]} Rhc8 {[%emt 0:12:27]} 20. c6 {[%emt 0:01:34]} Kf8 {[%emt 0:00:02]} 21. Ne4 {[%emt 0:07:53]} Rc7 {[%emt 0:07:04]} 22. Nc5 {[%emt 0:06:58]} Bc8 {[%emt 0:00:02]} 23. Red1 {[%emt 0:02:59]} Ke7 {[%emt 0:03:15]} 24. g4 {[%emt 0:09:04]} f6 {[%emt 0:09:52]} 25. Rb1 {[%emt 0:03:02]} Rxb1 {[%emt 0:05:35]} 26. Rxb1 {[%emt 0:00:26]} Nf7 {[%emt 0:20:36]} 27. Rb7 {[%emt 0:00:45]} Kd8 {[%emt 0:00:30]} 28. Na6 {[%emt 0:03:40]} Re7 {[%emt 0:00:02]} 29. c7+ {[%emt 0:11:05]} Kd7 {[%emt 0:01:28]} 30. Nc5+ {[%emt 0:00:53]} Kd6 {[%emt 0:02:05]} 31. Ne4+ {[%emt 0:00:06]} Ke5 {[%emt 0:01:59]} 32. Rxa7 {[%emt 0:00:23]} Ng5 {[%emt 0:05:52]} 33. Nxg5 {[%emt 0:01:59]} fxg5 {[%emt 0:00:02]} 34. Kg2 {[%emt 0:01:31]} Kd6 {[%emt 0:00:19]} 35. Be4 {[%emt 0:00:35]} h6 {[%emt 0:00:17]} 36. Kf3 {[%emt 0:00:35]} Rxc7 {[%emt 0:00:49]} 37. Rxc7 {[%emt 0:00:12]} Kxc7 {[%emt 0:00:01]} 38. Ke3 {[%emt 0:00:27]} Kd6 {[%emt 0:00:02]} 39. Kd3 {[%emt 0:00:58]} Ba6+ {[%emt 0:01:12]} 40. Ke3 {[%emt 0:00:00]} Kc5 {[%emt 0:00:00]} 41. a4 {[%emt 0:12:19]} Bc8 {[%emt 0:13:58]} 42. Bd3 {[%emt 0:07:52]} Kb4 {[%emt 0:01:55]} 43. Bb5 {[%emt 0:05:50]} Bb7 {[%emt 0:03:07]} 44. Kd4 {[%emt 0:03:34]} Bf3 {[%emt 0:00:47]} 45. Ke5 {[%emt 0:00:01]} Bxg4 {[%emt 0:00:41]} 46. Bd7 {[%emt 0:00:10]} Bd1 {[%emt 0:18:37]} 47. Kxe6 {[%emt 0:02:19]} Kc5 {[%emt 0:00:53]} 48. Ke5 {[%emt 0:02:20]} h5 {[%emt 0:00:59]} 49. a5 {[%emt 0:00:30]} Be2 {[%emt 0:00:27]} 50. Bc8 {[%emt 0:00:08]} Kc6 {[%emt 0:01:47]} 51. a6 {[%emt 0:00:38]} Kb6 {[%emt 0:00:14]} 52. Bb7 {[%emt 0:00:43]} Bg4 {[%emt 0:00:14]} 53. Kd6 {[%emt 0:00:33]} Be2 {[%emt 0:01:00]} 54. Ke6 {[%emt 0:00:07]} Bd3 {[%emt 0:00:26]} 55. Kf7 {[%emt 0:00:24]} g6 {[%emt 0:00:16]} 56. Kf6 {[%emt 0:00:11]} g4 {[%emt 0:00:07]} 57. Kg5 {[%emt 0:00:41]} Bc2 {[%emt 0:01:09]} 58. Bd5 {[%emt 0:01:11]} Bd3 {[%emt 0:00:27]} 59. Bf7 {[%emt 0:00:24]} Bxa6 {[%emt 0:00:10]} 60. Bxg6 {[%emt 0:00:17]} Kc6 {[%emt 0:00:50]} 61. Bxh5 {[%emt 0:00:33]} Kd6 {[%emt 0:00:32]} 62. Bxg4 {[%emt 0:00:50]} Ke7 {[%emt 0:00:01]} 63. Kg6 {[%emt 0:00:13]} Kf8 {[%emt 0:00:09]} 64. Be6 {[%emt 0:00:15]} Bd3+ {[%emt 0:00:18]} 65. Kf6 {[%emt 0:00:33]} Be2 {[%emt 0:00:14]} 66. Bf7 {[%emt 0:00:44]} Bf3 {[%emt 0:01:53]} 67. h4 {[%emt 0:00:06]} Be4 {[%emt 0:00:12]} 68. h5 {[%emt 0:00:06]} Bd3 {[%emt 0:00:49]} 69. h6 {[%emt 0:00:10]} Bc2 {[%emt 0:00:28]} 70. Bg6 {[%emt 0:00:18]} Bb3 {[%emt 0:00:08]} 71. h7 {[%emt 0:00:14]} Bg8 {[%emt 0:00:12]} 72. f4 {[%emt 0:00:41]} 1-0

[Event "Azerbaijan-ch-Women-2025"]
[Site "Baku"]
[Date "2025.02.05"]
[Round "1.2"]
[White "Mamedjarova, Zeinab"]
[Black "Allahverdiyeva, Ayan"]
[Result "1/2-1/2"]
[Annotator "RC"]
[ECO "D02"]
[WhiteElo "2145"]
[BlackElo "2284"]
[PlyCount "91"]
[EventDate "2025.01.08"]
[EventType "k.o."]
[EventCountry "AZE"]
[SourceTitle "playchess.com"]
[Source "ChessBase"]
[SourceQuality "1"]
[TimeControl "40/5400+30:1800+30"]

1. d4 {[%emt 0:00:04]} Nf6 {[%emt 0:02:16]} 2. Nf3 {[%emt 0:00:42]} d5 {[%emt 0:00:05]} 3. c3 {[%emt 0:01:14]} c5 {[%emt 0:01:54]} 4. g3 {[%emt 0:09:35]} Nc6 {[%emt 0:04:32]} 5. Bg2 {[%emt 0:00:54]} Bf5 {[%emt 0:00:33]} 6. O-O {[%emt 0:01:01]} e6 {[%emt 0:00:11]} 7. Qb3 {[%emt 0:10:18]} Qc8 {[%emt 0:03:19]} 8. Be3 {[%emt 0:09:40]} h6 {[%emt 0:07:49]} 9. h3 {[%emt 0:04:40]} Be7 {[%emt 0:13:37]} 10. Qd1 {[%emt 0:06:07]} cxd4 {[%emt 0:08:30]} 11. cxd4 {[%emt 0:11:43]} Nb4 {[%emt 0:00:45]} 12. Na3 {[%emt 0:04:15]} O-O {[%emt 0:01:43]} 13. Ne5 {[%emt 0:08:36]} Qd8 {[%emt 0:03:08]} 14. Qb3 {[%emt 0:07:49]} Qb6 {[%emt 0:00:29]} 15. Rfc1 {[%emt 0:02:32]} Rfc8 {[%emt 0:00:04]} 16. Rc3 {[%emt 0:05:33]} Ne4 {[%emt 0:18:42]} 17. Rxc8+ {[%emt 0:06:21]} Rxc8 {[%emt 0:00:18]} 18. g4 {[%emt 0:01:38]} Bh7 {[%emt 0:00:37]} 19. Qa4 {[%emt 0:02:03]} Nf6 {[%emt 0:06:44]} 20. Nd7 {[%emt 0:03:33]} Nxd7 {[%emt 0:07:21]} 21. Qxd7 {[%emt 0:00:03]} Rc7 {[%emt 0:00:13]} 22. Qe8+ {[%emt 0:00:29]} Bf8 {[%emt 0:00:08]} 23. Bf4 {[%emt 0:01:07]} Rc6 {[%emt 0:00:04]} 24. Rc1 {[%emt 0:01:37]} Nxa2 {[%emt 0:10:33]} 25. Rc5 {[%emt 0:00:10]} Rxc5 {[%emt 0:04:35]} 26. dxc5 {[%emt 0:00:01]} Qc6 {[%emt 0:00:40]} 27. Qb8 {[%emt 0:00:14]} Qxc5 {[%emt 0:01:34]} 28. Nb5 {[%emt 0:00:40]} Qxb5 {[%emt 0:00:26]} 29. Bd6 {[%emt 0:00:05]} Bg6 {[%emt 0:00:06]} 30. Qxf8+ {[%emt 0:00:35]} Kh7 {[%emt 0:00:06]} 31. Be5 {[%emt 0:01:22]} f6 {[%emt 0:00:25]} 32. Bxf6 {[%emt 0:01:12]} gxf6 {[%emt 0:00:05]} 33. Qe7+ {[%emt 0:00:06]} Kg8 {[%emt 0:00:08]} 34. Qxe6+ {[%emt 0:00:19]} Bf7 {[%emt 0:00:10]} 35. Qxf6 {[%emt 0:00:09]} Qxe2 {[%emt 0:02:14]} 36. Qxh6 {[%emt 0:00:35]} Qxb2 {[%emt 0:01:53]} 37. Qg5+ {[%emt 0:01:21]} Qg7 {[%emt 0:01:29]} 38. Qd8+ {[%emt 0:00:26]} Qf8 {[%emt 0:00:08]} 39. Qg5+ {[%emt 0:00:11]} Qg7 {[%emt 0:01:40]} 40. Qd8+ {[%emt 0:00:00]} Kh7 {[%emt 0:00:00]} 41. Bxd5 {[%emt 0:06:19]} Bxd5 {[%emt 0:15:37]} 42. Qxd5 {[%emt 0:00:39]} Qa1+ {[%emt 0:05:36]} 43. Kg2 {[%emt 0:00:39]} Qb1 {[%emt 0:00:41]} 44. Qf7+ {[%emt 0:02:42]} Kh6 {[%emt 0:00:03]} 45. Qf6+ {[%emt 0:06:29]} Qg6 {[%emt 0:04:11]} 46. Qh8+ {[%emt 0:00:46]} 1/2-1/2

[Event "Azerbaijan-ch-Women-2025"]
[Site "Baku"]
[Date "2025.02.05"]
[Round "1.2"]
[White "Hajiyeva, Laman"]
[Black "Balajayeva, Khanim"]
[Result "0-1"]
[Annotator "RC"]
[ECO "C89"]
[WhiteElo "2079"]
[BlackElo "2355"]
[PlyCount "78"]
[EventDate "2025.01.08"]
[EventType "k.o."]
[EventCountry "AZE"]
[SourceTitle "playchess.com"]
[Source "ChessBase"]
[SourceQuality "1"]
[TimeControl "40/5400+30:1800+30"]

1. e4 {[%emt 0:00:19]} e5 {[%emt 0:01:08]} 2. Nf3 {[%emt 0:00:06]} Nc6 {[%emt 0:00:14]} 3. Bb5 {[%emt 0:00:05]} a6 {[%emt 0:00:46]} 4. Ba4 {[%emt 0:00:05]} Nf6 {[%emt 0:00:11]} 5. O-O {[%emt 0:00:06]} Be7 {[%emt 0:00:55]} 6. Re1 {[%emt 0:00:38]} b5 {[%emt 0:00:41]} 7. Bb3 {[%emt 0:03:00]} O-O {[%emt 0:01:59]} 8. c3 {[%emt 0:00:56]} d5 {[%emt 0:02:23]} 9. exd5 {[%emt 0:01:18]} Nxd5 {[%emt 0:00:26]} 10. Nxe5 {[%emt 0:00:23]} Nxe5 {[%emt 0:00:10]} 11. Rxe5 {[%emt 0:00:06]} c6 {[%emt 0:00:48]} 12. d3 {[%emt 0:00:58]} Bd6 {[%emt 0:00:44]} 13. Re1 {[%emt 0:00:24]} Bf5 {[%emt 0:00:55]} 14. Qf3 {[%emt 0:01:59]} Qh4 {[%emt 0:00:48]} 15. g3 {[%emt 0:00:45]} Qh3 {[%emt 0:00:45]} 16. Bxd5 {[%emt 0:00:59]} cxd5 {[%emt 0:00:05]} 17. Qxd5 {[%emt 0:00:22]} Rad8 {[%emt 0:02:51]} 18. Qg2 {[%emt 0:01:04]} Qh5 {[%emt 0:01:03]} 19. Be3 {[%emt 0:01:17]} Bh3 {[%emt 0:01:24]} 20. Qh1 {[%emt 0:00:41]} f5 {[%emt 0:05:42]} 21. Bb6 {[%emt 0:01:38]} Rb8 {[%emt 0:03:24]} 22. Qd5+ {[%emt 0:07:40]} Kh8 {[%emt 0:01:22]} 23. Bd4 {[%emt 0:00:13]} Rfd8 {[%emt 0:06:52]} 24. Qh1 {[%emt 0:11:35]} Re8 {[%emt 0:07:39]} 25. Nd2 {[%emt 0:11:08]} Rxe1+ {[%emt 0:03:17]} 26. Rxe1 {[%emt 0:00:08]} Re8 {[%emt 0:01:53]} 27. Ra1 {[%emt 0:11:22]} Qe2 {[%emt 0:05:14]} 28. Qc6 {[%emt 0:08:05]} Qe1+ {[%emt 0:05:57]} 29. Nf1 {[%emt 0:01:00]} Bf8 {[%emt 0:00:56]} 30. Qh6 {[%emt 0:11:53]} Qxa1 {[%emt 0:01:50]} 31. Qxh3 {[%emt 0:00:06]} Qxb2 {[%emt 0:02:07]} 32. Qxf5 {[%emt 0:01:12]} Qxa2 {[%emt 0:00:48]} 33. Ne3 {[%emt 0:00:50]} Qe6 {[%emt 0:02:44]} 34. Qg5 {[%emt 0:02:44]} h6 {[%emt 0:02:07]} 35. Qf4 {[%emt 0:00:19]} a5 {[%emt 0:03:57]} 36. c4 {[%emt 0:01:05]} b4 {[%emt 0:01:32]} 37. c5 {[%emt 0:00:21]} a4 {[%emt 0:03:13]} 38. Nc4 {[%emt 0:00:47]} a3 {[%emt 0:03:21]} 39. Qc7 {[%emt 0:00:39]} Qd5 {[%emt 0:04:17]} 0-1

[Event "Azerbaijan-ch-Women-2025"]
[Site "Baku"]
[Date "2025.02.05"]
[Round "1.2"]
[White "Rzali, Sabina"]
[Black "Beydullayeva, Govhar"]
[Result "0-1"]
[Annotator "RC"]
[ECO "B25"]
[WhiteElo "2027"]
[BlackElo "2404"]
[PlyCount "48"]
[EventDate "2025.01.08"]
[EventType "k.o."]
[EventCountry "AZE"]
[SourceTitle "playchess.com"]
[Source "ChessBase"]
[SourceQuality "1"]
[TimeControl "40/5400+30:1800+30"]

1. e4 {[%emt 0:00:01]} c5 {[%emt 0:00:06]} 2. Nc3 {[%emt 0:00:05]} d6 {[%emt 0:00:03]} 3. g3 {[%emt 0:00:05]} Nc6 {[%emt 0:00:13]} 4. Bg2 {[%emt 0:00:18]} g6 {[%emt 0:00:43]} 5. d3 {[%emt 0:00:39]} Bg7 {[%emt 0:00:06]} 6. f4 {[%emt 0:01:35]} e6 {[%emt 0:00:22]} 7. Nf3 {[%emt 0:02:40]} Nge7 {[%emt 0:00:08]} 8. Be3 {[%emt 0:02:16]} O-O {[%emt 0:00:35]} 9. O-O {[%emt 0:00:24]} Rb8 {[%emt 0:00:12]} 10. Qd2 {[%emt 0:07:23]} b5 {[%emt 0:01:14]} 11. d4 {[%emt 0:03:53]} d5 {[%emt 0:08:51]} 12. exd5 {[%emt 0:04:49]} exd5 {[%emt 0:03:23]} 13. Bf2 {[%emt 0:03:53]} b4 {[%emt 0:21:46]} 14. Nd1 {[%emt 0:04:58]} Na5 {[%emt 0:06:30]} 15. b3 {[%emt 0:15:56]} Nf5 {[%emt 0:10:33]} 16. Rb1 {[%emt 0:02:46]} Ba6 {[%emt 0:13:07]} 17. Re1 {[%emt 0:00:18]} Nd6 {[%emt 0:03:46]} 18. c3 {[%emt 0:07:35]} Ne4 {[%emt 0:01:17]} 19. Qb2 {[%emt 0:02:56]} bxc3 {[%emt 0:06:04]} 20. Nxc3 {[%emt 0:01:58]} Nc4 {[%emt 0:02:18]} 21. Qa1 {[%emt 0:04:38]} Na3 {[%emt 0:01:09]} 22. Rbd1 {[%emt 0:06:43]} Nxf2 {[%emt 0:00:44]} 23. Kxf2 {[%emt 0:00:32]} Nc2 {[%emt 0:00:57]} 24. Qb2 {[%emt 0:00:27]} Nxe1 {[%emt 0:00:12]} 0-1